bitfinex-derivatives/quotes_BTCF0:USTF0_20210102
["timestamp","ask_amount","ask_price","bid_price","bid_amount"]
[1609603771200,0.17699,32193.0,32175.0,0.11095]
[1609603772001,0.17699,32193.0,32161.0,3.9708]
[1609603772601,0.18043158,32162.0,32161.0,4.15123158]
[1609603772903,0.17699,32193.0,32161.0,4.15123158]
[1609603773802,0.03,32193.0,32161.0,4.15123158]
[1609603774604,0.03,32193.0,32161.0,3.9708]
[1609603775205,0.18043158,32180.0,32161.0,3.9708]
[1609603775406,0.15278,32191.0,32161.0,3.9708]
[1609603776407,0.03,32193.0,32161.0,3.9708]
[1609603776608,0.03,32193.0,32177.0,2.0]
[1609603777010,0.03,32193.0,32177.0,4.15623]
[1609603777209,0.18043158,32178.0,32177.0,4.15623]
[1609603777409,1.18043158,32178.0,32177.0,4.15623]
[1609603778515,0.18043158,32178.0,32177.0,4.15623]
[1609603778813,0.18043158,32178.0,32177.0,3.74083]
[1609603779014,1.18043158,32178.0,32177.0,3.74083]
[1609603779215,1.0,32178.0,32177.0,3.74083]
[1609603779414,0.14276,32179.0,32177.0,3.74083]
[1609603779614,0.18043158,32178.0,32177.0,3.74083]
[1609603781015,1.18043158,32178.0,32177.0,3.74083]
[1609603781215,1.28811158,32178.0,32177.0,3.74083]
[1609603781616,1.10768,32178.0,32177.0,3.74083]
[1609603782116,1.28811158,32178.0,32177.0,3.74083]
[1609603782416,0.28811158,32178.0,32177.0,3.74083]
[1609603784218,0.10768,32178.0,32177.0,3.74083]
[1609603784419,0.12147,32190.0,32177.0,3.74083]
[1609603784619,0.18043158,32178.0,32177.0,3.74083]
[1609603786020,1.18043158,32178.0,32177.0,3.74083]
[1609603786222,0.18043158,32178.0,32177.0,3.74083]
[1609603786621,0.14894,32183.0,32177.0,3.74083]
[1609603787121,0.18043158,32178.0,32177.0,3.74083]
[1609603787521,1.18043158,32178.0,32177.0,3.74083]
[1609603788122,0.18043158,32178.0,32177.0,3.74083]
[1609603788721,9.642,39360.0,32177.0,1.74123]
[1609603789123,1.0,32194.0,32177.0,1.74123]
[1609603789324,0.18043158,32178.0,32177.0,1.74123]
[1609603790024,0.18081132,32178.0,32177.0,1.74123]
[1609603790426,1.18081132,32178.0,32177.0,1.74123]
[1609603791028,0.18081132,32178.0,32177.0,1.74123]
[1609603791226,0.00037974,32178.0,32177.0,1.74123]
[1609603791627,1.00037972,32182.0,32177.0,1.74123]
[1609603791827,0.18043158,32178.0,32177.0,1.74123]
[1609603792027,1.1908113,32178.0,32177.0,1.74123]
[1609603793731,1.01037972,32178.0,32177.0,1.74123]
[1609603794127,1.01037972,32178.0,32177.0,1.63663]
[1609603794329,1.1908113,32178.0,32177.0,1.63663]
[1609603794930,0.1908113,32178.0,32177.0,1.63663]
[1609603795429,1.1908113,32178.0,32177.0,1.63663]
[1609603796332,1.01037972,32178.0,32177.0,1.63663]
[1609603796732,1.1908113,32178.0,32177.0,1.63663]
[1609603798534,1.01037972,32178.0,32177.0,1.63663]
[1609603799035,1.1908113,32178.0,32177.0,1.63663]
[1609603800837,1.1908113,32178.0,32177.0,1.0]
[1609603801038,0.01037972,32178.0,32153.0,0.14221]
[1609603801239,0.01037972,32182.0,32153.0,0.14221]
[1609603801640,0.00037978,32181.0,32154.0,0.00040004]
[1609603802842,0.00037972,32182.0,32154.0,0.00040004]
[1609603803744,0.00037972,32182.0,32173.0,0.18043158]
[1609603804345,0.00037972,32182.0,32174.0,0.00039978]
[1609603805148,0.00037972,32182.0,32174.0,0.11473]
[1609603805549,0.00037956,32194.0,32175.0,0.0003998]
[1609603805748,0.18043158,32176.0,32175.0,0.0003998]
[1609603806148,0.16072,32180.0,32175.0,0.0003998]
[1609603806750,0.00037953,32179.0,32168.0,0.00039977]
[1609603806950,0.16072,32180.0,32176.0,0.00039969]
[1609603807149,0.16072,32180.0,32173.0,0.03]
[1609603807349,0.10915,32195.0,32176.0,0.11923]
[1609603807552,0.10915,32195.0,32177.0,0.00039961]
[1609603807750,2.25,32200.0,32194.0,0.18043158]
[1609603808250,0.00037932,32199.0,32195.0,0.00039954]
[1609603808451,2.25,32200.0,32195.0,0.00039954]
[1609603808652,0.3711,32200.0,32195.0,0.00039954]
[1609603809253,0.3711,32200.0,32195.0,1.00039954]
[1609603809452,0.3711,32200.0,32196.0,1.0]
[1609603809652,0.3711,32200.0,32199.0,0.18043158]
[1609603809853,0.3711,32200.0,32199.0,1.18043158]
[1609603810053,0.3711,32200.0,32199.0,1.31614158]
[1609603810253,0.3711,32200.0,32199.0,1.31654088]
[1609603810553,0.2565,32200.0,32199.0,1.31654088]
[1609603810754,0.2565,32200.0,32199.0,1.354442]
[1609603811456,0.2565,32200.0,32199.0,1.31654088]
[1609603811657,0.2565,32200.0,32199.0,1.1361093]
[1609603812057,0.2565,32200.0,32199.0,1.31654088]
[1609603812459,0.04161785,32230.0,32199.0,0.31654088]
[1609603812858,0.04161785,32230.0,32200.0,1.00039899]
[1609603813059,1.0253089,32308.0,32200.0,0.03787478]
[1609603813458,1.0253089,32308.0,32201.0,0.03826879]
[1609603813657,0.2849,32304.0,32201.0,0.03826879]
[1609603813861,0.41158,32304.0,32201.0,0.16572]
[1609603814059,0.41158,32304.0,32276.0,0.18043158]
[1609603814259,0.00037868,32303.0,32202.0,0.03826681]
[1609603814461,0.00037868,32303.0,32261.0,0.04161785]
[1609603814658,0.00037868,32303.0,32261.0,0.13641]
[1609603814859,0.28307868,32303.0,32261.0,0.13641]
[1609603815260,0.2827,32303.0,32261.0,0.13641]
[1609603815661,0.12668,32304.0,32261.0,0.13641]
[1609603815862,0.2936,32303.0,32261.0,0.13641]
[1609603816062,0.18043158,32262.0,32248.0,1.65729797]
[1609603817162,0.18043158,32262.0,29942.0,0.04222547]
[1609603817163,1.0,32261.0,32207.0,1.65259335]
[1609603817663,1.0,32261.0,32201.0,2.11878487]
[1609603817664,1.0,32261.0,32201.0,0.16572]
[1609603818062,1.0,32261.0,32231.0,0.18043158]
[1609603819263,0.1229,32264.0,32228.0,0.14481]
[1609603820064,0.18043158,32250.0,32246.0,0.18043158]
[1609603820263,0.1229,32264.0,32246.0,0.18043158]
[1609603821265,0.0921,32263.0,32246.0,0.18043158]
[1609603821866,0.15769,32265.0,32246.0,0.18043158]
[1609603822066,0.18043158,32247.0,32246.0,0.18043158]
[1609603822266,0.32003158,32247.0,32228.0,0.14481]
[1609603823567,0.32003158,32247.0,32220.0,0.12139]
[1609603823768,0.32003158,32247.0,32201.0,0.16572]
[1609603823967,0.32003158,32247.0,32178.0,2.67677289]
[1609603824167,0.16437,32254.0,32243.0,0.18043158]
[1609603824569,0.15769,32265.0,32243.0,0.18043158]
[1609603824767,0.15769,32265.0,32255.0,2.0]
[1609603824968,0.15769,32265.0,32239.0,0.1551]
[1609603825168,0.15769,32265.0,32071.0,0.5304]
[1609603825169,0.15769,32265.0,32173.0,0.00807968]
[1609603825369,0.15769,32265.0,32247.0,0.0166]
[1609603825869,0.15769,32265.0,32221.0,0.10908]
[1609603826270,0.15769,32265.0,32233.0,0.18043158]
[1609603826670,1.0,32264.0,32221.0,0.10908]
[1609603826872,1.14121,32264.0,32221.0,0.10908]
[1609603827073,0.61484528,32264.0,32221.0,0.10908]
[1609603827270,1.0,32263.0,32221.0,0.10908]
[1609603827670,1.0,32263.0,32173.0,0.00807968]
[1609603827871,0.0926,32262.0,32173.0,0.00807968]
[1609603828071,3.7464,32249.0,32173.0,0.00807968]
[1609603828270,0.18043158,32191.0,32173.0,0.11328968]
[1609603828871,1.0,32190.0,32173.0,0.11328968]
[1609603829071,1.16303,32190.0,32154.0,1.96827604]
[1609603829272,0.16303,32190.0,32154.0,1.96827604]
[1609603830373,0.16303,32190.0,32149.0,5.02310994]
[1609603832275,0.16303,32190.0,32172.0,0.33853158]
[1609603833575,0.16303,32190.0,32172.0,0.1581]
[1609603833977,1.11253,32204.0,32172.0,0.1581]
[1609603834177,1.11253,32204.0,32173.0,0.18043158]
[1609603834378,0.11253,32204.0,32173.0,0.18043158]
[1609603834578,1.0,32203.0,32172.0,0.1581]
[1609603834779,0.0935,32202.0,32172.0,0.1581]
[1609603835179,1.1724,32203.0,32172.0,0.1581]
[1609603835680,0.1724,32203.0,32172.0,0.1581]
[1609603836280,0.18043158,32173.0,32172.0,0.33853158]
[1609603836481,0.12264,32196.0,32172.0,0.33853158]
[1609603837080,0.12264,32196.0,32115.0,0.03529653]
[1609603837282,0.12264,32196.0,32172.0,0.16901]
[1609603837482,0.0932,32195.0,32172.0,0.16901]
[1609603838181,0.0932,32195.0,32194.0,0.18043158]
[1609603838382,0.0932,32195.0,32194.0,0.30798158]
[1609603838982,0.65882218,32215.0,32194.0,0.30798158]
[1609603839385,0.65903013,32227.0,32194.0,0.30798158]
[1609603840286,0.65903013,32227.0,32194.0,0.12755]
[1609603840887,0.8054406,32229.0,32194.0,0.12755]
[1609603841087,0.65912697,32230.0,32194.0,0.12755]
[1609603842190,0.65912697,32230.0,32195.0,0.18043158]
[1609603842390,0.65912697,32230.0,32194.0,0.12755]
[1609603842589,0.43554,32213.0,32182.0,0.14051]
[1609603843089,1.43554,32213.0,32182.0,0.14051]
[1609603843289,1.43554,32213.0,32172.0,0.16901]
[1609603843590,1.43554,32213.0,32119.0,1.84125611]
[1609603843889,1.43554,32213.0,32120.0,0.00039952]
[1609603844089,1.43554,32213.0,32120.0,0.15336952]
[1609603844491,3.6998,32202.0,32121.0,0.00039956]
[1609603844691,1.0,32201.0,32121.0,0.00039956]
[1609603845290,1.0,32196.0,32121.0,0.00039956]
[1609603845491,1.16067,32195.0,32121.0,0.00039956]
[1609603845795,0.16067,32195.0,32121.0,0.03834237]
[1609603846192,0.16067,32195.0,32174.0,0.18043158]
[1609603846492,0.16067,32195.0,32174.0,0.29594158]
[1609603846693,0.16067,32195.0,32174.0,0.11551]
[1609603848695,0.00935517,32198.0,32174.0,0.11551]
[1609603849496,0.00935517,32198.0,32175.0,0.00039945]
[1609603850298,0.00935517,32198.0,32197.0,0.18043158]
[1609603850698,0.00935517,32198.0,32193.0,0.12687]
[1609603851098,0.00935341,32201.0,32193.0,0.12687]
[1609603852001,1.0,32209.0,32193.0,0.12687]
[1609603852200,0.18043158,32194.0,32193.0,0.12687]
[1609603853401,0.18043158,32194.0,32174.0,0.11551]
[1609603853601,1.0,32193.0,32121.0,0.31077559]
[1609603853802,1.0,32193.0,32175.0,0.0004021]
[1609603854006,0.2835,32192.0,32175.0,0.0004021]
[1609603854202,0.18043158,32176.0,32164.0,0.18043158]
[1609603854402,0.18043158,32176.0,32122.0,0.03794432]
[1609603854603,0.18043158,32176.0,32165.0,0.00040217]
[1609603854803,0.1488,32187.0,32165.0,0.00040217]
[1609603855002,0.1488,32187.0,32165.0,0.12503]
[1609603855203,0.1488,32187.0,32166.0,0.00040217]
[1609603855403,0.2835,32192.0,32166.0,0.00040217]
[1609603855805,1.0,32191.0,32166.0,0.00040217]
[1609603856005,0.2835,32192.0,32166.0,0.00040217]
[1609603856206,0.18043158,32169.0,32168.0,0.18043158]
[1609603856607,0.18043158,32169.0,32168.0,0.18083371]
[1609603856807,0.18043158,32169.0,32168.0,0.00040213]
[1609603857207,0.16131,32190.0,32168.0,0.00040213]
[1609603857408,0.16131,32190.0,32166.0,0.00040213]
[1609603857606,0.1287,32198.0,32169.0,0.00040208]
[1609603857807,0.00938365,32199.0,32166.0,0.0383413]
[1609603858209,0.00938365,32199.0,32198.0,0.18043158]
[1609603858608,0.00938365,32199.0,32198.0,0.18083344]
[1609603859210,0.0093817,32215.0,32198.0,0.18083344]
[1609603859409,0.0093817,32215.0,32198.0,0.18083339]
[1609603859711,0.0093817,32215.0,32199.0,0.00040178]
[1609603860211,0.0093817,32215.0,32214.0,0.18043158]
[1609603860611,0.2723,32224.0,32214.0,0.00040172]
[1609603861011,0.2723,32224.0,32166.0,1.68214637]
[1609603861212,0.2723,32224.0,32170.0,1.68177887]
[1609603861612,0.2723,32224.0,32171.0,0.11411343]
[1609603862212,0.18043158,32219.0,32218.0,0.18043158]
[1609603862713,0.18043158,32219.0,32218.0,0.18083324]
[1609603863318,0.18043158,32219.0,32172.0,1.68161346]
[1609603863319,0.18043158,32219.0,32172.0,1.67161349]
[1609603863518,4.05563158,32219.0,32172.0,1.67161349]
[1609603863714,4.05563158,32219.0,32173.0,0.03831024]
[1609603864115,4.05563158,32219.0,32173.0,0.20961024]
[1609603864315,0.18043158,32202.0,32173.0,0.20961024]
[1609603864521,0.18043158,32202.0,32174.0,0.03831045]
[1609603865216,1.18043158,32202.0,32173.0,0.1613]
[1609603866119,1.18043158,32202.0,32175.0,1.83102518]
[1609603866318,0.18043158,32176.0,32175.0,1.83102518]
[1609603866719,0.18043158,32176.0,32175.0,1.83142719]
[1609603867120,0.18043158,32176.0,32175.0,1.82142719]
[1609603867720,0.18043158,32176.0,32175.0,0.05882719]
[1609603867923,1.18043158,32176.0,32175.0,0.00040201]
[1609603868120,1.87743158,32176.0,32175.0,0.00040201]
[1609603868320,1.87743158,32176.0,32174.0,0.00040206]
[1609603868519,0.87743158,32176.0,32175.0,0.00040209]
[1609603868921,0.18043158,32176.0,32174.0,0.00040209]
[1609603869121,0.18043158,32176.0,32175.0,0.00040206]
[1609603869521,1.78273158,32176.0,32175.0,0.00040206]
[1609603869721,1.78273158,32176.0,32174.0,0.00040208]
[1609603869921,1.78273158,32176.0,32175.0,0.0004021]
[1609603870523,0.78273158,32176.0,32174.0,0.00040218]
[1609603870722,1.78273158,32176.0,32175.0,0.00040215]
[1609603871224,1.78273158,32176.0,32166.0,0.0004022]
[1609603871424,1.78273158,32176.0,32165.0,0.12503]
[1609603871624,1.93534158,32176.0,32175.0,0.00040222]
[1609603871823,1.93534158,32176.0,32166.0,0.00040222]
[1609603872023,1.33304158,32176.0,32175.0,0.00040224]
[1609603872224,1.33304158,32176.0,32155.0,0.15613]
[1609603872225,4.9504,32167.0,32155.0,0.15613]
[1609603872424,5.12063,32167.0,32155.0,0.15613]
[1609603872623,0.17023,32167.0,32156.0,0.00040228]
[1609603873226,6.31033,32167.0,32156.0,0.00040228]
[1609603874027,6.31033,32167.0,32149.0,0.00040228]
[1609603874227,6.31033,32167.0,32157.0,0.0004023]
[1609603874426,6.31033,32167.0,32150.0,0.00040232]
[1609603874727,6.31033,32167.0,32149.0,0.00040236]
[1609603874926,6.31033,32167.0,32151.0,0.00040239]
[1609603875126,1.17023,32167.0,32151.0,0.00040239]
[1609603875326,3.5772,32152.0,32149.0,0.00040239]
[1609603875527,1.0,32151.0,32148.0,0.15879]
[1609603875727,1.0,32151.0,32150.0,0.00040243]
[1609603876126,1.0,32151.0,32149.0,0.00040249]
[1609603876326,0.18043158,32150.0,32143.0,0.2946]
[1609603876528,1.0,32149.0,32143.0,0.2946]
[1609603876927,1.11131,32149.0,32144.0,0.00040258]
[1609603877529,3.9373,32145.0,32144.0,0.00040258]
[1609603877730,4.9373,32145.0,32144.0,0.00040258]
[1609603877928,4.9373,32145.0,32143.0,0.2946]
[1609603878328,0.18043158,32144.0,32143.0,0.2946]
[1609603878530,1.18043158,32144.0,32143.0,0.2946]
[1609603879032,0.18043158,32144.0,32143.0,0.2946]
[1609603879928,4.7426,32157.0,32143.0,0.2946]
[1609603880129,0.11331,32150.0,32106.0,1.7387863]
[1609603880329,0.11331,32150.0,32146.0,0.18043158]
[1609603881130,4.7426,32157.0,32146.0,0.18043158]
[1609603881532,0.2888,32172.0,32146.0,0.18043158]
[1609603881933,0.17968439,32167.0,32146.0,0.18043158]
[1609603882332,0.18043158,32154.0,32152.0,0.18043158]
[1609603882732,0.54035439,32167.0,32152.0,0.18043158]
[1609603884433,0.54035439,32167.0,32161.0,0.18043158]
[1609603884632,0.54035439,32167.0,32143.0,0.15331]
[1609603885035,1.0,32166.0,32143.0,0.15331]
[1609603885436,4.7822,32163.0,32143.0,0.15331]
[1609603885637,1.0,32162.0,32143.0,0.15331]
[1609603886450,0.18043158,32144.0,32143.0,0.15331]
[1609603886856,5.7822,32163.0,32136.0,0.18043158]
[1609603887038,5.7822,32163.0,32142.0,0.17302547]
[1609603887451,4.7822,32163.0,32142.0,0.17302547]
[1609603888341,0.18043158,32146.0,32144.0,0.18043158]
[1609603889241,0.14656,32164.0,32144.0,0.18043158]
[1609603889642,4.35068802,32185.0,32144.0,0.18043158]
[1609603890042,4.3412,32185.0,32144.0,0.18043158]
[1609603890342,0.18043158,32159.0,32156.0,0.18043158]
[1609603890741,1.12008,32172.0,32156.0,0.18043158]
[1609603890945,0.41,32180.0,32142.0,0.17302547]
[1609603892344,0.41,32180.0,32143.0,0.00040217]
[1609603893145,0.41,32180.0,32142.0,0.17302547]
[1609603893345,1.56066,32180.0,32142.0,0.17302547]
[1609603893746,1.56066,32180.0,32143.0,0.00040229]
[1609603893946,1.56066,32180.0,32142.0,0.17302547]
[1609603894448,0.18043158,32147.0,32146.0,0.18043158]
[1609603894650,1.56066,32180.0,32142.0,0.17302547]
[1609603894847,0.14194,32171.0,32142.0,0.17302547]
[1609603895048,1.0,32170.0,32143.0,0.0004024]
[1609603896248,1.7261,32170.0,32143.0,0.0004024]
[1609603896450,0.18043158,32144.0,32143.0,0.0004024]
[1609603898949,1.0,32158.0,32143.0,0.0004024]
[1609603899862,0.12291,32163.0,32143.0,0.0004024]
[1609603900454,0.12291,32163.0,32159.0,0.18043158]
[1609603900655,0.14194,32171.0,32159.0,0.18043158]
[1609603900955,1.0,32179.0,32160.0,0.00040233]
[1609603901457,0.00947779,32188.0,32160.0,0.00040233]
[1609603901856,0.00947812,32197.0,32160.0,0.00040233]
[1609603902055,4.7041,32195.0,32160.0,0.00040233]
[1609603902555,4.7041,32195.0,32179.0,0.18043158]
[1609603902957,0.41,32180.0,32160.0,0.00040233]
[1609603903156,0.41,32180.0,32179.0,0.00040213]
[1609603903357,0.41,32180.0,32161.0,0.00040213]
[1609603903557,0.41,32180.0,32179.0,0.00040213]
[1609603903757,1.41,32180.0,32179.0,0.00040213]
[1609603903959,1.41,32180.0,32160.0,0.00040213]
[1609603904157,1.41,32180.0,32159.0,0.13014]
[1609603904158,1.9292,32180.0,32159.0,0.13014]
[1609603904459,1.9292,32180.0,32161.0,0.00040222]
[1609603904660,0.18043158,32162.0,32160.0,0.18083382]
[1609603904960,0.18043158,32162.0,32160.0,0.18043158]
[1609603905161,0.18043158,32162.0,32161.0,0.00040227]
[1609603905762,1.9292,32180.0,32161.0,0.00040227]
[1609603905963,0.9292,32180.0,32161.0,0.00040227]
[1609603906665,0.18043158,32175.0,32171.0,0.18043158]
[1609603907064,0.18043158,32175.0,32172.0,0.00040218]
[1609603907866,0.18043158,32175.0,32160.0,0.00040218]
[1609603908166,0.18043158,32175.0,32173.0,0.00040218]
[1609603908368,0.18043158,32175.0,32161.0,0.00040218]
[1609603908567,0.18043158,32175.0,32173.0,0.18043158]
[1609603908970,0.18043158,32175.0,32174.0,0.00040218]
[1609603909770,0.18043158,32175.0,32160.0,0.0004022]
[1609603909969,0.18043158,32175.0,32174.0,0.00040221]
[1609603910370,0.18043158,32175.0,32160.0,0.00040219]
[1609603910570,1.0,32175.0,32174.0,0.00040221]
[1609603910787,1.0,32175.0,32161.0,0.00040225]
[1609603911180,1.0,32175.0,32160.0,0.00040225]
[1609603911373,1.0,32175.0,32162.0,0.00040225]
[1609603911591,1.0,32179.0,32161.0,0.00040225]
[1609603911773,0.41,32180.0,32161.0,0.00040225]
[1609603911973,1.0,32179.0,32160.0,0.00040225]
[1609603912191,0.41,32180.0,32162.0,0.00040223]
[1609603912383,0.41,32180.0,32161.0,0.00040223]
[1609603912674,0.41,32180.0,32167.0,0.18043158]
[1609603912875,0.41,32180.0,32162.0,0.0003997]
[1609603913076,1.0,32179.0,32162.0,0.0003997]
[1609603913275,1.0,32179.0,32160.0,0.0003997]
[1609603913488,1.0,32179.0,32163.0,0.00039973]
[1609603913876,1.0,32179.0,32161.0,0.00039975]
[1609603914082,1.0,32179.0,32164.0,0.00039979]
[1609603914281,1.5178,32179.0,32162.0,0.00039981]
[1609603914495,1.5178,32179.0,32165.0,0.00039981]
[1609603914681,0.18043158,32166.0,32165.0,0.00039981]
[1609603914886,1.18043158,32166.0,32160.0,0.00039983]
[1609603915086,1.18043158,32166.0,32142.0,0.35345705]
[1609603915480,1.18043158,32166.0,32161.0,0.00039984]
[1609603915690,1.18043158,32166.0,32151.0,0.15501]
[1609603915885,1.18043158,32166.0,32162.0,0.00039982]
[1609603916084,1.18043158,32166.0,32152.0,0.00039985]
[1609603916683,0.18043158,32153.0,32152.0,0.00039985]
[1609603916885,1.18043158,32153.0,32152.0,0.00039985]
[1609603917085,0.18043158,32153.0,32152.0,0.00039985]
[1609603919985,1.18043158,32153.0,32152.0,0.00039985]
[1609603921585,1.18043158,32153.0,32143.0,0.00039995]
[1609603921786,1.18043158,32153.0,32152.0,0.00039995]
[1609603921986,1.18043158,32153.0,32144.0,0.00039995]
[1609603922286,1.18043158,32153.0,32143.0,0.00039995]
[1609603922688,5.047,32150.0,32145.0,0.00039997]
[1609603922890,1.0,32149.0,32144.0,0.00039997]
[1609603923088,1.0,32149.0,32146.0,0.0004]
[1609603923289,0.18043158,32147.0,32146.0,0.0004]
[1609603923488,1.18043158,32147.0,32145.0,0.00040004]
[1609603923688,1.18043158,32147.0,32146.0,0.00040004]
[1609603924188,1.18043158,32147.0,32143.0,0.00040007]
[1609603924391,1.18043158,32147.0,32146.0,0.00040007]
[1609603924690,1.18043158,32147.0,32143.0,0.00040005]
[1609603925092,1.18043158,32147.0,32146.0,0.00040005]
[1609603925291,1.18043158,32147.0,32144.0,0.00040007]
[1609603925493,1.18043158,32147.0,32146.0,0.00040007]
[1609603925791,1.18043158,32147.0,32145.0,0.00040007]
[1609603925992,1.31148158,32147.0,32146.0,0.00040009]
[1609603926392,1.31148158,32147.0,32143.0,0.00040009]
[1609603926593,1.31148158,32147.0,32146.0,0.00040009]
[1609603926792,1.31148158,32147.0,32144.0,0.00040011]
[1609603927192,0.13105,32147.0,32143.0,0.00040011]
[1609603927392,0.13105,32147.0,32145.0,0.00040008]
[1609603927593,0.13348,32154.0,32144.0,0.00040002]
[1609603927815,0.14855,32161.0,32144.0,0.00040002]
[1609603928006,4.7888,32174.0,32143.0,0.00039997]
[1609603928203,1.0,32167.0,32145.0,0.00039992]
[1609603928409,1.13644,32167.0,32143.0,0.03837279]
[1609603929394,0.18043158,32160.0,32157.0,0.18043158]
[1609603929595,0.13644,32167.0,32157.0,0.18043158]
[1609603929795,0.13644,32167.0,32158.0,0.00039982]
[1609603931296,0.18043158,32161.0,32158.0,0.00039982]
[1609603931696,0.00955669,32175.0,32158.0,0.00039982]
[1609603932225,4.3264,32170.0,32158.0,0.00039982]
[1609603932419,1.0,32169.0,32158.0,0.00039982]
[1609603932797,1.0,32169.0,32154.0,0.13073]
[1609603932997,1.0,32169.0,32159.0,0.00039986]
[1609603933198,1.0,32169.0,32155.0,0.00039988]
[1609603933397,0.18043158,32156.0,32155.0,0.00039988]
[1609603933599,1.18043158,32156.0,32143.0,0.03836942]
[1609603933798,1.18043158,32156.0,32155.0,0.0003999]
[1609603933998,1.18043158,32156.0,32144.0,0.0003999]
[1609603934298,1.18043158,32156.0,32143.0,0.03837135]
[1609603934498,0.18043158,32156.0,32143.0,0.03837135]
[1609603934701,0.01,32154.0,32145.0,0.00039994]
[1609603934899,0.01,32154.0,32144.0,0.00039994]
[1609603935099,0.01,32154.0,32146.0,0.00039994]
[1609603935300,0.18043158,32147.0,32146.0,0.18083152]
[1609603935500,0.01,32154.0,32146.0,0.18083152]
[1609603935501,0.01,32154.0,32146.0,0.18043158]
[1609603935701,0.01,32154.0,32146.0,0.1808315]
[1609603935901,0.01,32154.0,32147.0,0.00039992]
[1609603936102,0.01,32154.0,32147.0,0.03837029]
[1609603936403,0.0173,32147.0,32146.0,0.18043158]
[1609603936903,0.0173,32147.0,32146.0,0.21879194]
[1609603937104,0.0073,32147.0,32146.0,0.21879194]
[1609603937904,0.01,32154.0,32146.0,3.82144539]
[1609603938405,0.01,32154.0,32147.0,0.03835944]
[1609603939304,0.01,32154.0,32153.0,0.18043158]
[1609603939505,1.17313158,32160.0,32153.0,0.30198158]
[1609603939705,1.17313158,32160.0,32153.0,0.34033918]
[1609603939906,1.17313158,32160.0,32154.0,0.0383579]
[1609603940909,0.17313158,32160.0,32154.0,0.0383579]
[1609603941309,1.0,32164.0,32154.0,0.0383579]
[1609603941509,1.0,32164.0,32159.0,0.18043158]
[1609603941711,0.18043158,32165.0,32159.0,0.18043158]
[1609603942111,1.18043158,32165.0,32160.0,0.03835692]
[1609603942514,1.18043158,32165.0,32154.0,0.03836024]
[1609603943013,0.89642188,32165.0,32154.0,1.74924905]
[1609603943212,0.14824,32174.0,32154.0,1.74924905]
[1609603943213,0.89642188,32164.0,32154.0,1.74924905]
[1609603943414,0.89642188,32164.0,32159.0,0.18043158]
[1609603943814,0.89642188,32164.0,32155.0,0.03836082]
[1609603944013,0.89642188,32164.0,32153.0,0.12155]
[1609603944014,0.89642188,32164.0,32160.0,0.0003998]
[1609603944214,0.89642188,32164.0,32153.0,0.12155]
[1609603944215,0.89642188,32164.0,32156.0,0.00039984]
[1609603944413,0.89642188,32164.0,32154.0,0.00039987]
[1609603945218,4.2931,32155.0,32154.0,0.00039987]
[1609603945418,5.36995346,32155.0,32154.0,0.00039987]
[1609603947418,1.07685346,32155.0,32154.0,0.00039987]
[1609603947619,5.28425346,32155.0,32154.0,0.00039987]
[1609603950223,5.10382188,32155.0,32154.0,0.00039987]
[1609603950823,5.10382188,32155.0,32153.0,1.26789414]
[1609603951223,6.10382188,32155.0,32153.0,0.70199414]
[1609603951424,0.18043158,32154.0,32153.0,0.70199414]
[1609603951625,1.07685346,32154.0,32153.0,0.70199414]
[1609603951828,1.07685346,32154.0,32153.0,0.12249414]
[1609603952027,1.07685346,32154.0,32153.0,0.12289427]
[1609603952228,4.90895346,32154.0,32153.0,0.12289427]
[1609603952429,4.90895346,32154.0,32150.0,1.80286048]
[1609603952931,4.90895346,32154.0,32151.0,0.0004002]
[1609603953129,4.90895346,32154.0,32150.0,1.49376048]
[1609603953329,4.90895346,32154.0,32150.0,1.46576048]
[1609603954029,1.07685346,32154.0,32150.0,1.46576048]
[1609603954229,3.6946,32153.0,32151.0,0.00040018]
[1609603954429,0.89642188,32152.0,32151.0,0.00040018]
[1609603954629,1.04490188,32152.0,32151.0,0.00040018]
[1609603956732,0.14848,32152.0,32151.0,0.00040018]
[1609603956932,0.18043158,32154.0,32151.0,0.00040018]
[1609603957133,1.16069,32159.0,32151.0,0.00040018]
[1609603957532,1.16069,32159.0,32158.0,0.18043158]
[1609603958132,1.0,32159.0,32158.0,0.18083146]
[1609603958332,1.0,32159.0,32158.0,0.00039988]
[1609603958934,1.0,32159.0,32151.0,0.00039988]
[1609603959333,1.0,32158.0,32146.0,0.00039988]
[1609603959533,1.0,32158.0,32154.0,0.18043158]
[1609603959733,1.0,32158.0,32146.0,0.00039988]
[1609603959934,1.0,32158.0,32155.0,0.0003999]
[1609603960334,1.0,32157.0,32147.0,0.0003999]
[1609603960536,1.0,32157.0,32156.0,0.00039992]
[1609603960735,1.0,32157.0,32148.0,0.00039992]
[1609603961136,1.16723,32157.0,32156.0,0.00039992]
[1609603961336,1.16723,32157.0,32149.0,0.00039994]
[1609603961535,0.18043158,32150.0,32141.0,0.18043158]
[1609603961737,1.0,32149.0,32141.0,0.18043158]
[1609603961937,1.0,32149.0,32138.0,0.14002]
[1609603962137,1.0,32149.0,32143.0,0.00039998]
[1609603963442,0.18043158,32144.0,32143.0,0.00039998]
[1609603963640,1.18043158,32144.0,32143.0,0.00039998]
[1609603964040,1.0,32144.0,32143.0,0.00039998]
[1609603964942,5.9577,32144.0,32143.0,0.00039998]
[1609603965443,6.13813158,32144.0,32143.0,0.00039998]
[1609603966544,6.13813158,32144.0,32143.0,0.00040014]
[1609603966745,6.13813158,32144.0,32136.0,2.02700352]
[1609603966945,6.13813158,32144.0,32143.0,0.00040013]
[1609603967147,1.18043158,32144.0,32143.0,0.00040013]
[1609603968747,1.84703158,32144.0,32143.0,0.00040013]
[1609603972350,1.84703158,32144.0,32123.0,0.11858]
[1609603972549,1.18043158,32144.0,32121.0,1.72418506]
[1609603972751,5.0326,32137.0,32124.0,0.03839649]
[1609603972950,1.0,32136.0,32123.0,0.03839549]
[1609603973551,0.18043158,32124.0,32123.0,0.03839549]
[1609603973752,1.18043158,32124.0,32123.0,0.03839549]
[1609603975056,1.69103158,32124.0,32123.0,0.03839549]
[1609603975854,1.69103158,32124.0,32119.0,0.03840196]
[1609603977456,0.18043158,32120.0,32114.0,0.03840102]
[1609603977656,1.0,32119.0,32114.0,0.03840102]
[1609603978257,3.6397,32118.0,32114.0,0.03840102]
[1609603978456,1.0,32117.0,32114.0,0.03840102]